[Event "*** Titled Tuesday Blitz"]
[Site "Chess.com"]
[Date "2019.12.03"]
[Round "4"]
[White "Alexander_Donchenko"]
[Black "Kildepiotr"]
[Result "1-0"]
[WhiteElo "2739"]
[BlackElo "2522"]
[TimeControl "180+2"]
[EndTime "13:53:23 PST"]
[Termination "Alexander_Donchenko won by resignation"]

1. e4 {[%clk 0:03:01.9]} 1... g6 {[%clk 0:03:00.8]} 2. d4 {[%clk 0:03:02.5]}
2... Bg7 {[%clk 0:03:02.3]} 3. c4 {[%clk 0:03:03.7]} 3... d6 {[%clk 0:03:02.7]}
4. Nc3 {[%clk 0:03:05]} 4... Nd7 {[%clk 0:03:03.8]} 5. Nf3 {[%clk 0:03:05.1]}
5... e5 {[%clk 0:03:04.7]} 6. Be3 {[%clk 0:03:06.2]} 6... Ngf6 {[%clk
0:03:05.4]} 7. Be2 {[%clk 0:03:06.5]} 7... Ng4 {[%clk 0:03:05.2]} 8. Bg5 {[%clk
0:03:07.2]} 8... f6 {[%clk 0:03:06.5]} 9. Bd2 {[%clk 0:03:08.3]} 9... c6 {[%clk
0:03:04]} 10. O-O {[%clk 0:03:07.5]} 10... O-O {[%clk 0:03:03.9]} 11. b4 {[%clk
0:03:07]} 11... f5 {[%clk 0:03:02.8]} 12. dxe5 {[%clk 0:03:06.8]} 12... Ngxe5
{[%clk 0:02:58.6]} 13. Nxe5 {[%clk 0:02:58.9]} 13... Nxe5 {[%clk 0:02:56.5]} 14.
Qc2 {[%clk 0:02:53.7]} 14... f4 {[%clk 0:02:56.1]} 15. f3 {[%clk 0:02:52.5]}
15... Be6 {[%clk 0:02:56.8]} 16. Na4 {[%clk 0:02:36.7]} 16... g5 {[%clk
0:02:43.2]} 17. Rad1 {[%clk 0:02:33.1]} 17... Qe8 {[%clk 0:02:35.5]} 18. c5
{[%clk 0:02:20.4]} 18... d5 {[%clk 0:02:36.3]} 19. exd5 {[%clk 0:02:17]} 19...
Bxd5 {[%clk 0:02:37.2]} 20. Nc3 {[%clk 0:02:16.6]} 20... Be6 {[%clk 0:02:37.7]}
21. Ne4 {[%clk 0:02:16.3]} 21... Qh5 {[%clk 0:02:36.1]} 22. Bc3 {[%clk
0:02:14.1]} 22... g4 {[%clk 0:02:27]} 23. fxg4 {[%clk 0:02:06.6]} 23... Bxg4
{[%clk 0:02:26.9]} 24. Bxe5 {[%clk 0:01:57.3]} 24... Bxe5 {[%clk 0:02:20.7]} 25.
Bxg4 {[%clk 0:01:32.8]} 25... Qxg4 {[%clk 0:02:11.4]} 26. h3 {[%clk 0:01:27.1]}
26... Qg6 {[%clk 0:02:07.6]} 27. Qc4+ {[%clk 0:01:16.1]} 27... Kh8 {[%clk
0:02:07.9]} 28. Nd2 {[%clk 0:01:12.3]} 28... Rg8 {[%clk 0:02:00.1]} 29. Rf2
{[%clk 0:00:56.7]} 29... Raf8 {[%clk 0:01:33.4]} 30. Nf3 {[%clk 0:00:54.1]}
30... Bg7 {[%clk 0:01:33.4]} 31. Rd7 {[%clk 0:00:50.5]} 31... b5 {[%clk
0:01:33.8]} 32. Qc2 {[%clk 0:00:43.8]} 32... Qh5 {[%clk 0:01:22.2]} 33. Rxa7
{[%clk 0:00:38.1]} 33... Bf6 {[%clk 0:01:11.9]} 34. Rd2 {[%clk 0:00:32]} 34...
Rg3 {[%clk 0:00:29.5]} 35. Rdd7 {[%clk 0:00:27.6]} 35... Bd4+ {[%clk 0:00:11.1]}
36. Rxd4 {[%clk 0:00:08.9]} 36... Rfg8 {[%clk 0:00:06.7]} 37. Rdd7 {[%clk
0:00:05.3]} 37... Rxg2+ {[%clk 0:00:06.1]} 38. Qxg2 {[%clk 0:00:07.2]} 38...
Rxg2+ {[%clk 0:00:06.6]} 39. Kxg2 {[%clk 0:00:09.1]} 39... Qg6+ {[%clk
0:00:08.2]} 40. Kf2 {[%clk 0:00:08.6]} 40... Qc2+ {[%clk 0:00:08.9]} 41. Nd2
{[%clk 0:00:09.9]} 1-0

[Event "*** Titled Tuesday Blitz"]
[Site "Chess.com"]
[Date "2019.12.03"]
[Round "4"]
[White "vpantev"]
[Black "jefferyx"]
[Result "0-1"]
[WhiteElo "2590"]
[BlackElo "2896"]
[TimeControl "180+2"]
[EndTime "13:53:30 PST"]
[Termination "jefferyx won by resignation"]

1. d4 {[%clk 0:02:55.6]} 1... g6 {[%clk 0:02:57.8]} 2. Bf4 {[%clk 0:02:55.9]}
2... Bg7 {[%clk 0:02:59]} 3. e3 {[%clk 0:02:56.6]} 3... d6 {[%clk 0:03:00.6]} 4.
Nf3 {[%clk 0:02:57.3]} 4... Nd7 {[%clk 0:03:02.1]} 5. h3 {[%clk 0:02:58]} 5...
e5 {[%clk 0:03:03.4]} 6. Bh2 {[%clk 0:02:59.6]} 6... Nh6 {[%clk 0:03:04.8]} 7.
c3 {[%clk 0:02:58.6]} 7... O-O {[%clk 0:03:06]} 8. Qb3 {[%clk 0:02:59.5]} 8...
Qe7 {[%clk 0:03:06]} 9. Be2 {[%clk 0:03:00.4]} 9... Kh8 {[%clk 0:03:06.8]} 10.
a4 {[%clk 0:02:59.8]} 10... b6 {[%clk 0:03:06.6]} 11. a5 {[%clk 0:03:00.4]}
11... Bb7 {[%clk 0:03:07.8]} 12. O-O {[%clk 0:02:58.6]} 12... f5 {[%clk
0:03:06]} 13. axb6 {[%clk 0:02:59.2]} 13... axb6 {[%clk 0:03:07.1]} 14. Rxa8
{[%clk 0:02:53.3]} 14... Rxa8 {[%clk 0:03:09]} 15. Na3 {[%clk 0:02:53.7]} 15...
f4 {[%clk 0:03:05.3]} 16. dxe5 {[%clk 0:02:37.6]} 16... fxe3 {[%clk 0:03:05.8]}
17. exd6 {[%clk 0:02:36.3]} 17... cxd6 {[%clk 0:03:07.7]} 18. Qd1 {[%clk
0:02:22]} 18... Nf5 {[%clk 0:03:07.4]} 19. Nc2 {[%clk 0:02:12]} 19... exf2+
{[%clk 0:02:49.1]} 20. Rxf2 {[%clk 0:02:12.6]} 20... Nc5 {[%clk 0:02:51]} 21.
Nfd4 {[%clk 0:01:59.8]} 21... Nxd4 {[%clk 0:02:50.9]} 22. Nxd4 {[%clk
0:02:00.4]} 22... Bh6 {[%clk 0:02:42.3]} 23. Kh1 {[%clk 0:01:57.3]} 23... Ne4
{[%clk 0:02:42.7]} 24. Rf1 {[%clk 0:01:54.3]} 24... Be3 {[%clk 0:02:41.5]} 25.
Bf3 {[%clk 0:01:47.1]} 25... Nf2+ {[%clk 0:02:36.9]} 26. Rxf2 {[%clk 0:01:47.9]}
26... Bxf2 {[%clk 0:02:38.8]} 27. Bxb7 {[%clk 0:01:48.8]} 27... Qxb7 {[%clk
0:02:40.7]} 28. Bxd6 {[%clk 0:01:36.9]} 28... Re8 {[%clk 0:02:39.4]} 29. Kh2
{[%clk 0:01:33.7]} 29... Qd5 {[%clk 0:02:33.8]} 30. Bc7 {[%clk 0:01:26.5]} 30...
Qf7 {[%clk 0:01:49.4]} 31. Bg3 {[%clk 0:01:18.9]} 31... Re1 {[%clk 0:01:28.3]}
32. Qxe1 {[%clk 0:01:07.7]} 32... Bxe1 {[%clk 0:01:28]} 33. Bxe1 {[%clk
0:01:08.8]} 33... Qf4+ {[%clk 0:01:17.5]} 34. Bg3 {[%clk 0:01:04.9]} 34... Qc1
{[%clk 0:01:16.1]} 35. Nf3 {[%clk 0:00:58.6]} 35... Qxb2 {[%clk 0:01:15.9]} 36.
Be5+ {[%clk 0:00:59.6]} 36... Kg8 {[%clk 0:01:17.5]} 37. Bd4 {[%clk 0:01:00.7]}
37... Qb3 {[%clk 0:01:12]} 38. Kg3 {[%clk 0:01:01.3]} 38... b5 {[%clk
0:01:12.7]} 39. Kf2 {[%clk 0:01:01.9]} 39... Qd5 {[%clk 0:01:10.3]} 40. Kg3
{[%clk 0:01:02.4]} 40... Kf7 {[%clk 0:01:11.5]} 41. Kf2 {[%clk 0:01:03.5]} 41...
Ke6 {[%clk 0:01:12.7]} 42. Kg3 {[%clk 0:01:03.1]} 42... Kf5 {[%clk 0:01:13.8]}
43. Kf2 {[%clk 0:01:03.2]} 43... Ke4 {[%clk 0:01:14.9]} 44. Kg3 {[%clk
0:01:03.8]} 44... Kd3 {[%clk 0:01:12.9]} 45. Ne5+ {[%clk 0:01:03.5]} 45... Ke2
{[%clk 0:01:13.1]} 46. Nf3 {[%clk 0:01:04.6]} 46... g5 {[%clk 0:01:10.5]} 47.
Bf6 {[%clk 0:01:00.7]} 47... h6 {[%clk 0:01:10.6]} 48. Kh2 {[%clk 0:00:58.3]}
48... Kf1 {[%clk 0:01:06.9]} 49. Kg3 {[%clk 0:00:55.4]} 49... Qa2 {[%clk
0:01:05.5]} 50. Nh2+ {[%clk 0:00:55.6]} 50... Kg1 {[%clk 0:00:52.5]} 51. Bd4+
{[%clk 0:00:49]} 51... Kh1 {[%clk 0:00:53.8]} 52. Bf2 {[%clk 0:00:50.1]} 52...
Qe2 {[%clk 0:00:32]} 53. Nf3 {[%clk 0:00:47]} 53... h5 {[%clk 0:00:31.8]} 54.
Nxg5 {[%clk 0:00:33.1]} 54... h4+ {[%clk 0:00:32.5]} 55. Kxh4 {[%clk 0:00:32.8]}
55... Qxf2+ {[%clk 0:00:34.4]} 0-1

[Event "*** Titled Tuesday Blitz"]
[Site "Chess.com"]
[Date "2019.12.03"]
[Round "4"]
[White "Kostya_Nikologorskiy"]
[Black "WeAintSurePal"]
[Result "1-0"]
[WhiteElo "2651"]
[BlackElo "2376"]
[TimeControl "180+2"]
[EndTime "13:53:30 PST"]
[Termination "Kostya_Nikologorskiy won by resignation"]

1. d4 {[%clk 0:03:01.9]} 1... d5 {[%clk 0:02:59.1]} 2. c4 {[%clk 0:03:01.2]}
2... e6 {[%clk 0:02:59.4]} 3. Nc3 {[%clk 0:03:00.3]} 3... a6 {[%clk 0:02:58.6]}
4. cxd5 {[%clk 0:02:56.6]} 4... exd5 {[%clk 0:03:00.5]} 5. Nf3 {[%clk 0:02:52]}
5... Nf6 {[%clk 0:03:00.8]} 6. Bg5 {[%clk 0:02:51]} 6... c6 {[%clk 0:03:00.7]}
7. Qc2 {[%clk 0:02:48.8]} 7... Be6 {[%clk 0:02:56.7]} 8. e3 {[%clk 0:02:43.9]}
8... Nbd7 {[%clk 0:02:57.4]} 9. Bd3 {[%clk 0:02:35.4]} 9... Be7 {[%clk
0:02:55.8]} 10. O-O {[%clk 0:02:31.2]} 10... O-O {[%clk 0:02:55.1]} 11. Rab1
{[%clk 0:02:26.4]} 11... Re8 {[%clk 0:02:55.1]} 12. b4 {[%clk 0:02:26.2]} 12...
h6 {[%clk 0:02:51.6]} 13. Bh4 {[%clk 0:02:26.6]} 13... Nb6 {[%clk 0:02:52.3]}
14. Ne5 {[%clk 0:02:20.3]} 14... Nc4 {[%clk 0:02:51.6]} 15. Bxc4 {[%clk
0:02:11.5]} 15... dxc4 {[%clk 0:02:53.5]} 16. f4 {[%clk 0:02:09.8]} 16... Nd5
{[%clk 0:02:51.7]} 17. Bxe7 {[%clk 0:02:10.5]} 17... Qxe7 {[%clk 0:02:46.7]} 18.
Qd2 {[%clk 0:01:34.5]} 18... Nxc3 {[%clk 0:02:44.7]} 19. Qxc3 {[%clk 0:01:35.4]}
19... Bd5 {[%clk 0:02:46]} 20. Rbe1 {[%clk 0:01:31.4]} 20... Be4 {[%clk
0:02:29.8]} 21. Qxc4 {[%clk 0:01:25.4]} 21... Rad8 {[%clk 0:02:28.4]} 22. f5
{[%clk 0:01:24.5]} 22... Bd5 {[%clk 0:02:25.3]} 23. Qc2 {[%clk 0:01:21.9]} 23...
f6 {[%clk 0:02:24.6]} 24. Ng6 {[%clk 0:01:11.9]} 24... Qe4 {[%clk 0:02:25.1]}
25. Qd2 {[%clk 0:01:01.7]} 25... Bf7 {[%clk 0:02:16.6]} 26. Rf4 {[%clk
0:00:48.8]} 26... Qd5 {[%clk 0:02:17.2]} 27. a3 {[%clk 0:00:44.3]} 27... Bxg6
{[%clk 0:02:08.2]} 28. fxg6 {[%clk 0:00:46.2]} 28... Re4 {[%clk 0:02:09.4]} 29.
Rxe4 {[%clk 0:00:41.9]} 29... Qxe4 {[%clk 0:02:09.8]} 30. Qa2+ {[%clk
0:00:43.6]} 30... Kh8 {[%clk 0:02:08]} 31. Qb1 {[%clk 0:00:39.9]} 31... Qd5
{[%clk 0:02:00.3]} 32. Qd3 {[%clk 0:00:35]} 32... Rd6 {[%clk 0:01:57.2]} 33. Rf1
{[%clk 0:00:34.3]} 33... Kg8 {[%clk 0:01:45.8]} 34. Rf5 {[%clk 0:00:33.7]} 34...
Qa2 {[%clk 0:01:46.9]} 35. h3 {[%clk 0:00:33.8]} 35... Qe6 {[%clk 0:01:38.7]}
36. e4 {[%clk 0:00:31.1]} 36... Qe8 {[%clk 0:01:35.3]} 37. Qc4+ {[%clk
0:00:24.1]} 37... Qe6 {[%clk 0:01:27.9]} 38. Qxe6+ {[%clk 0:00:22.1]} 38... Rxe6
{[%clk 0:01:28.8]} 39. Rf4 {[%clk 0:00:23.4]} 39... Kf8 {[%clk 0:01:28]} 40. Kf2
{[%clk 0:00:24.1]} 40... Ke7 {[%clk 0:01:29]} 41. Ke3 {[%clk 0:00:25.4]} 41...
Kd6 {[%clk 0:01:29.1]} 42. g4 {[%clk 0:00:26.7]} 42... Re8 {[%clk 0:01:23.5]}
43. Rf5 {[%clk 0:00:27.9]} 43... b6 {[%clk 0:01:16]} 44. h4 {[%clk 0:00:29]}
44... Re7 {[%clk 0:01:16.1]} 45. Kf4 {[%clk 0:00:27.8]} 45... Re6 {[%clk
0:01:14]} 46. a4 {[%clk 0:00:26.6]} 46... Kd7 {[%clk 0:01:10.6]} 47. a5 {[%clk
0:00:27.8]} 47... b5 {[%clk 0:01:08.3]} 48. d5 {[%clk 0:00:27.3]} 48... Rd6
{[%clk 0:01:07.9]} 49. g5 {[%clk 0:00:25.4]} 49... fxg5+ {[%clk 0:01:03.8]} 50.
hxg5 {[%clk 0:00:27.3]} 50... Rxg6 {[%clk 0:01:04.7]} 51. Rf7+ {[%clk
0:00:24.9]} 51... Kd6 {[%clk 0:01:05.8]} 52. gxh6 {[%clk 0:00:23.8]} 52... gxh6
{[%clk 0:01:05.6]} 53. Ra7 {[%clk 0:00:25.1]} 53... Rf6+ {[%clk 0:01:02.9]} 54.
Ke3 {[%clk 0:00:24.9]} 54... cxd5 {[%clk 0:01:03.4]} 55. Rxa6+ {[%clk
0:00:24.2]} 55... Ke5 {[%clk 0:01:04.4]} 56. Rxf6 {[%clk 0:00:25.4]} 56... Kxf6
{[%clk 0:01:03.7]} 57. a6 {[%clk 0:00:26.6]} 1-0

[Event "*** Titled Tuesday Blitz"]
[Site "Chess.com"]
[Date "2019.12.03"]
[Round "4"]
[White "kleopl"]
[Black "nmpdk"]
[Result "1-0"]
[WhiteElo "2496"]
[BlackElo "2331"]
[TimeControl "180+2"]
[EndTime "13:53:30 PST"]
[Termination "kleopl won on time"]

1. c4 {[%clk 0:03:01.9]} 1... e5 {[%clk 0:02:56.6]} 2. Nc3 {[%clk 0:03:02.6]}
2... Nc6 {[%clk 0:02:56.8]} 3. Nf3 {[%clk 0:03:03.7]} 3... Nf6 {[%clk
0:02:53.5]} 4. e4 {[%clk 0:03:04.4]} 4... Bc5 {[%clk 0:02:52.7]} 5. Nxe5 {[%clk
0:03:05.3]} 5... Nxe5 {[%clk 0:02:36.6]} 6. d4 {[%clk 0:03:06.1]} 6... Bb4
{[%clk 0:02:29.2]} 7. dxe5 {[%clk 0:03:06.6]} 7... Nxe4 {[%clk 0:02:25.9]} 8.
Qf3 {[%clk 0:03:07.4]} 8... Nxc3 {[%clk 0:02:13]} 9. bxc3 {[%clk 0:03:09.3]}
9... Bc5 {[%clk 0:01:42.3]} 10. Qg3 {[%clk 0:03:09.4]} 10... Kf8 {[%clk
0:01:29.3]} 11. Bd3 {[%clk 0:03:06.5]} 11... d6 {[%clk 0:01:29.5]} 12. Bg5
{[%clk 0:02:55.5]} 12... Qe8 {[%clk 0:01:26.2]} 13. O-O {[%clk 0:02:50.3]} 13...
Qxe5 {[%clk 0:01:25.2]} 14. Bf4 {[%clk 0:02:49.3]} 14... Qf6 {[%clk 0:01:16.1]}
15. Rae1 {[%clk 0:02:47]} 15... Bf5 {[%clk 0:01:16.2]} 16. Bg5 {[%clk
0:02:45.9]} 16... Qg6 {[%clk 0:01:17.1]} 17. Be7+ {[%clk 0:02:43.9]} 17... Kg8
{[%clk 0:01:17.4]} 18. Bxf5 {[%clk 0:02:41.3]} 18... Qxf5 {[%clk 0:01:16.5]} 19.
Re2 {[%clk 0:02:29.9]} 19... h5 {[%clk 0:01:16.5]} 20. Rfe1 {[%clk 0:02:29.7]}
20... Rh6 {[%clk 0:01:16.8]} 21. Qh4 {[%clk 0:02:03.2]} 21... Rg6 {[%clk
0:01:13.9]} 22. h3 {[%clk 0:02:03.6]} 22... Qf3 {[%clk 0:01:01.6]} 23. Bg5
{[%clk 0:01:59.8]} 23... Qf5 {[%clk 0:01:02.4]} 24. Bd2 {[%clk 0:01:53.2]} 24...
Re6 {[%clk 0:00:43]} 25. g4 {[%clk 0:01:37]} 25... hxg4 {[%clk 0:00:41.7]} 26.
hxg4 {[%clk 0:01:38.1]} 26... Qg6 {[%clk 0:00:34.8]} 27. Rxe6 {[%clk 0:01:28.9]}
27... fxe6 {[%clk 0:00:36.7]} 28. Be3 {[%clk 0:01:20.9]} 28... Bxe3 {[%clk
0:00:36]} 29. Rxe3 {[%clk 0:01:22.8]} 29... Rf8 {[%clk 0:00:35.3]} 30. Kg2
{[%clk 0:01:20.7]} 30... e5 {[%clk 0:00:28.4]} 31. c5 {[%clk 0:01:18.9]} 31...
Rf4 {[%clk 0:00:27.6]} 32. Kg3 {[%clk 0:01:16.4]} 32... Qf7 {[%clk 0:00:21.5]}
33. cxd6 {[%clk 0:01:12.8]} 33... cxd6 {[%clk 0:00:22.1]} 34. f3 {[%clk
0:01:07.8]} 34... Rc4 {[%clk 0:00:18.5]} 35. Rd3 {[%clk 0:00:55.4]} 35... Qf4+
{[%clk 0:00:17]} 36. Kh3 {[%clk 0:00:53.8]} 36... Qf6 {[%clk 0:00:11.8]} 37.
Qxf6 {[%clk 0:00:50.5]} 37... gxf6 {[%clk 0:00:13.7]} 38. Rxd6 {[%clk
0:00:51.7]} 38... Rxc3 {[%clk 0:00:14.8]} 39. Rxf6 {[%clk 0:00:49.5]} 39... e4
{[%clk 0:00:15.9]} 40. Kg3 {[%clk 0:00:44.8]} 40... Rxf3+ {[%clk 0:00:16.4]} 41.
Rxf3 {[%clk 0:00:45.8]} 41... exf3 {[%clk 0:00:18.3]} 42. Kxf3 {[%clk
0:00:47.5]} 42... b5 {[%clk 0:00:19.9]} 43. Ke4 {[%clk 0:00:48.3]} 43... a5
{[%clk 0:00:21.1]} 44. Kd4 {[%clk 0:00:49.5]} 44... Kg7 {[%clk 0:00:21.5]} 45.
Kc5 {[%clk 0:00:50.5]} 45... b4 {[%clk 0:00:21.1]} 46. Kb5 {[%clk 0:00:51.6]}
46... Kf6 {[%clk 0:00:21.9]} 47. Kxa5 {[%clk 0:00:52.7]} 47... Kg5 {[%clk
0:00:23.4]} 48. Kxb4 {[%clk 0:00:53.8]} 48... Kxg4 {[%clk 0:00:25.1]} 49. a4
{[%clk 0:00:53.1]} 49... Kf5 {[%clk 0:00:26.7]} 50. a5 {[%clk 0:00:54]} 50...
Ke6 {[%clk 0:00:28.6]} 51. a6 {[%clk 0:00:55.2]} 51... Kd7 {[%clk 0:00:30.5]}
52. a7 {[%clk 0:00:56.4]} 1-0

[Event "*** Titled Tuesday Blitz"]
[Site "Chess.com"]
[Date "2019.12.03"]
[Round "4"]
[White "PowerThinking2650"]
[Black "RiskyDecision"]
[Result "1/2-1/2"]
[WhiteElo "2351"]
[BlackElo "2517"]
[TimeControl "180+2"]
[EndTime "13:53:39 PST"]
[Termination "Game drawn by repetition"]

1. e4 {[%clk 0:03:01.9]} 1... e6 {[%clk 0:03:00.1]} 2. d4 {[%clk 0:03:02.4]}
2... d5 {[%clk 0:03:01.4]} 3. Nd2 {[%clk 0:03:03.9]} 3... c5 {[%clk 0:03:01.9]}
4. Ngf3 {[%clk 0:03:03.5]} 4... cxd4 {[%clk 0:03:00.9]} 5. exd5 {[%clk
0:03:04.4]} 5... Qxd5 {[%clk 0:03:01.8]} 6. Bc4 {[%clk 0:03:05.3]} 6... Qd6
{[%clk 0:03:03.1]} 7. O-O {[%clk 0:03:01.6]} 7... Nf6 {[%clk 0:03:04]} 8. Nb3
{[%clk 0:03:02.4]} 8... Nc6 {[%clk 0:03:05.4]} 9. Nbxd4 {[%clk 0:03:03.3]} 9...
Nxd4 {[%clk 0:03:06.9]} 10. Nxd4 {[%clk 0:03:04.7]} 10... Be7 {[%clk 0:03:08.2]}
11. Nb5 {[%clk 0:02:57.5]} 11... Qc5 {[%clk 0:02:52.3]} 12. Be2 {[%clk
0:02:52.8]} 12... a6 {[%clk 0:02:43.4]} 13. Be3 {[%clk 0:02:48.2]} 13... Qc6
{[%clk 0:02:44]} 14. a4 {[%clk 0:02:38.5]} 14... O-O {[%clk 0:02:40.6]} 15. Bf3
{[%clk 0:02:35.9]} 15... Nd5 {[%clk 0:02:23.4]} 16. Qd2 {[%clk 0:01:16.1]} 16...
Qd7 {[%clk 0:01:13.6]} 17. Nd4 {[%clk 0:00:47.9]} 17... Nxe3 {[%clk 0:01:12.1]}
18. Qxe3 {[%clk 0:00:47.8]} 18... Qc7 {[%clk 0:01:08.2]} 19. Rfd1 {[%clk
0:00:35.9]} 19... Bf6 {[%clk 0:01:07.3]} 20. c3 {[%clk 0:00:34.4]} 20... Bd7
{[%clk 0:01:07.1]} 21. Qe4 {[%clk 0:00:32.1]} 21... Rab8 {[%clk 0:01:04.5]} 22.
a5 {[%clk 0:00:23.6]} 22... Rfd8 {[%clk 0:01:05.2]} 23. g3 {[%clk 0:00:21.4]}
23... Be8 {[%clk 0:01:05.7]} 24. Kg2 {[%clk 0:00:21.4]} 24... Qc5 {[%clk
0:00:59.7]} 25. h4 {[%clk 0:00:16.2]} 25... Bxd4 {[%clk 0:00:55.2]} 26. Rxd4
{[%clk 0:00:14.5]} 26... Rxd4 {[%clk 0:00:54.5]} 27. Qxd4 {[%clk 0:00:15.5]}
27... Qxd4 {[%clk 0:00:55.2]} 28. cxd4 {[%clk 0:00:16.9]} 28... Bd7 {[%clk
0:00:35.9]} 29. Rc1 {[%clk 0:00:16.3]} 29... Rc8 {[%clk 0:00:36.9]} 30. Rc5
{[%clk 0:00:17.2]} 30... Rxc5 {[%clk 0:00:35.6]} 31. dxc5 {[%clk 0:00:18.4]}
31... Bc6 {[%clk 0:00:34.7]} 32. Bxc6 {[%clk 0:00:17.4]} 32... bxc6 {[%clk
0:00:34.9]} 33. Kf3 {[%clk 0:00:17.4]} 33... f6 {[%clk 0:00:27.3]} 34. b4 {[%clk
0:00:14.4]} 34... Kf7 {[%clk 0:00:27.4]} 35. h5 {[%clk 0:00:14.4]} 35... g6
{[%clk 0:00:23.2]} 36. h6 {[%clk 0:00:09.5]} 36... e5 {[%clk 0:00:22.6]} 37. Ke4
{[%clk 0:00:09]} 37... Ke6 {[%clk 0:00:24.1]} 38. g4 {[%clk 0:00:10.3]} 38...
f5+ {[%clk 0:00:25.1]} 39. gxf5+ {[%clk 0:00:11.6]} 39... gxf5+ {[%clk
0:00:25.8]} 40. Kd3 {[%clk 0:00:12]} 40... Kd5 {[%clk 0:00:23]} 41. Kc3 {[%clk
0:00:10.3]} 41... Ke6 {[%clk 0:00:20.9]} 42. Kc4 {[%clk 0:00:10.6]} 42... Kf6
{[%clk 0:00:16.2]} 43. f3 {[%clk 0:00:10.8]} 43... Ke6 {[%clk 0:00:16.8]} 44.
Kc3 {[%clk 0:00:09.5]} 44... Ke7 {[%clk 0:00:16.5]} 45. Kd3 {[%clk 0:00:10.3]}
45... Kd7 {[%clk 0:00:17.5]} 46. Kc4 {[%clk 0:00:10.2]} 46... Ke6 {[%clk
0:00:18.3]} 47. Kc3 {[%clk 0:00:11.2]} 47... Ke7 {[%clk 0:00:19.2]} 48. Kc4
{[%clk 0:00:12.3]} 48... Ke6 {[%clk 0:00:20.6]} 1/2-1/2

[Event "*** Titled Tuesday Blitz"]
[Site "Chess.com"]
[Date "2019.12.03"]
[Round "4"]
[White "resha1988"]
[Black "Olga_Zhuravleva"]
[Result "1/2-1/2"]
[WhiteElo "2739"]
[BlackElo "2245"]
[TimeControl "180+2"]
[EndTime "13:53:41 PST"]
[Termination "Game drawn by repetition"]

1. Nc3 {[%clk 0:03:01.5]} 1... d5 {[%clk 0:02:55.4]} 2. e4 {[%clk 0:03:01.1]}
2... dxe4 {[%clk 0:02:51.7]} 3. Nxe4 {[%clk 0:03:03]} 3... Nf6 {[%clk
0:02:52.5]} 4. Nxf6+ {[%clk 0:03:00.4]} 4... exf6 {[%clk 0:02:51.6]} 5. d4
{[%clk 0:02:59]} 5... Bd6 {[%clk 0:02:50.1]} 6. Bd3 {[%clk 0:02:57.7]} 6... O-O
{[%clk 0:02:46.1]} 7. Ne2 {[%clk 0:02:58.5]} 7... Nc6 {[%clk 0:02:38.9]} 8. c3
{[%clk 0:02:59.1]} 8... Re8 {[%clk 0:02:36.1]} 9. Qc2 {[%clk 0:02:59.3]} 9... h6
{[%clk 0:02:33.4]} 10. O-O {[%clk 0:02:50.3]} 10... Bg4 {[%clk 0:02:27.8]} 11.
h3 {[%clk 0:02:43.3]} 11... Be6 {[%clk 0:02:19.4]} 12. Nf4 {[%clk 0:02:41.8]}
12... Bd7 {[%clk 0:02:06.1]} 13. Bd2 {[%clk 0:02:39.3]} 13... Ne7 {[%clk
0:02:06.4]} 14. Rfe1 {[%clk 0:02:35.2]} 14... c6 {[%clk 0:02:05.6]} 15. Re2
{[%clk 0:02:12.9]} 15... Qc7 {[%clk 0:02:03.1]} 16. Rae1 {[%clk 0:02:13.9]}
16... Bxf4 {[%clk 0:01:30]} 17. Bxf4 {[%clk 0:02:15.8]} 17... Qxf4 {[%clk
0:01:30.5]} 18. Rxe7 {[%clk 0:02:16.3]} 18... Qd6 {[%clk 0:01:26.9]} 19. Rxe8+
{[%clk 0:02:07.1]} 19... Rxe8 {[%clk 0:01:28.8]} 20. Rxe8+ {[%clk 0:02:07.8]}
20... Bxe8 {[%clk 0:01:30]} 21. Qe2 {[%clk 0:02:04]} 21... Bd7 {[%clk
0:01:29.1]} 22. Qe3 {[%clk 0:02:02.5]} 22... Be6 {[%clk 0:01:26.8]} 23. a3
{[%clk 0:01:56.2]} 23... Qc7 {[%clk 0:01:08.5]} 24. c4 {[%clk 0:01:43.9]} 24...
Qb6 {[%clk 0:01:02]} 25. b4 {[%clk 0:01:43.8]} 25... Kf8 {[%clk 0:00:59.8]} 26.
Qe4 {[%clk 0:01:36.3]} 26... g6 {[%clk 0:00:47.4]} 27. Qf4 {[%clk 0:00:37.7]}
27... Kg7 {[%clk 0:00:46.3]} 28. Qe3 {[%clk 0:00:19.5]} 28... a5 {[%clk
0:00:32.3]} 29. c5 {[%clk 0:00:09.3]} 29... Qd8 {[%clk 0:00:29]} 30. b5 {[%clk
0:00:08.5]} 30... cxb5 {[%clk 0:00:23.3]} 31. Bxb5 {[%clk 0:00:10.4]} 31... Qd5
{[%clk 0:00:18.9]} 32. Be2 {[%clk 0:00:10.6]} 32... Qa2 {[%clk 0:00:18.3]} 33.
Bf3 {[%clk 0:00:09.1]} 33... Qb1+ {[%clk 0:00:16.9]} 34. Kh2 {[%clk 0:00:09.6]}
34... Qb5 {[%clk 0:00:16.7]} 35. d5 {[%clk 0:00:09.8]} 35... Bc8 {[%clk
0:00:16.3]} 36. Qd4 {[%clk 0:00:10.6]} 36... Qd7 {[%clk 0:00:16.6]} 37. g3
{[%clk 0:00:09]} 37... Qf5 {[%clk 0:00:16.7]} 38. Bg2 {[%clk 0:00:08.8]} 38...
h5 {[%clk 0:00:17.5]} 39. h4 {[%clk 0:00:10.1]} 39... Qd7 {[%clk 0:00:17]} 40.
Qc3 {[%clk 0:00:09.1]} 40... Qa4 {[%clk 0:00:16.3]} 41. c6 {[%clk 0:00:08.4]}
41... bxc6 {[%clk 0:00:17.6]} 42. dxc6 {[%clk 0:00:05.8]} 42... Qb5 {[%clk
0:00:18.4]} 43. c7 {[%clk 0:00:05.9]} 43... Qb6 {[%clk 0:00:19.5]} 44. Kg1
{[%clk 0:00:04.9]} 44... Qb1+ {[%clk 0:00:19.9]} 45. Kh2 {[%clk 0:00:05.8]}
45... Qb6 {[%clk 0:00:21.2]} 46. Qc2 {[%clk 0:00:06.7]} 46... Qe6 {[%clk
0:00:20.6]} 47. Qc3 {[%clk 0:00:06.2]} 47... Qb6 {[%clk 0:00:21.2]} 1/2-1/2